{"text_format":"1","workbook":"xlsx","n_sheets":3,"sheets":["List1","List2","List3"],"not_rendered":{"charts":0,"images":0,"macros":0,"external_links":2,"defined_names":0,"comments":0,"pivot_tables":0},"unopened":[],"bounds":{"document_bytes":16777216,"sheet_cells":100000,"rows_first":2000,"rows_last":500,"rows_between":2000,"halvings":0,"cell_chars":16384,"cell_head_chars":4096},"cells_cut":0,"cells_raw":0,"read":"whole","date_system":"1900"}

{"sheet":"List1","index":0,"n_rows":73,"n_cols":10,"rows_kept":73,"cut":false,"hidden":false,"merged":[]}
[]
[]
["Obec , IČ: Náklo, 00299251"]
[]
["Rozpočtové opatření č. 7 - červen 2022 "]
[]
["V souladu s ustanovením § 16 zákona č. 250/2000 Sb., o rozpočtových pravidlech územních rozpočtů dojde k rozpočtovému"]
["opatření v případě změn rozpočtových prostředků na závazných ukazatelích."]
[]
["Rozpočtové opatření č. 7/2022 (předloženo na Radě obce 13. 6. 2022) a doplněno při jednání na zasedání Rady obce"]
[]
["PŘÍJMY"]
["PAR","POL","UZ","PARAGRAF","popis","Rozpočet na rok 2022","Rozpočet po změnách","změna ROZP","ROZP po ZMĚNĚ","POZNÁMKA"]
[null,null,null,null,null,null,null,null,{"$f":"H14+G14","v":0}]
[null,null,null,null,null,null,null,null,{"$f":"H15+G15","v":0}]
[null,null,null,"Celkem ZMĚNY v PŘÍJMECH",null,33700619.700000003,35858640.729999997,{"$f":"H15","v":0},{"$f":"H16+G16","v":35858640.729999997}]
[]
[null,null,null,"Celkem PŘÍJMY",null,{"$f":"G16","v":35858640.729999997},{"$f":"G16","v":35858640.729999997},{"$f":"H16","v":0},{"$f":"F18+H18","v":35858640.729999997}]
[]
["VÝDAJE:"]
["PAR","POL","UZ","PARAGRAF","popis","Rozpočet na rok 2022","Rozpočet po změnách","změna ROZP","ROZP po ZMĚNĚ","POZNÁMKA"]
[3639,6130,null,null,"Pozemky",54935.7,0,59384,{"$f":"H22+G22","v":59384}]
[3639,null,null,"Komunální služby a územní rozvoj jinde nazařazené",null,7667935.7000000002,7750000.0399999991,{"$f":"H22","v":59384},{"$f":"H23+G23","v":7809384.0399999991}]
[6171,5169,null,null,"Nákup ostatních služeb",1500000,1583821.46,-59384,{"$f":"H24+G24","v":1524437.46}]
[6171,null,null,"Činnost místní samosprávy",null,5427999,9629451.4600000009,{"$f":"H24","v":-59384},9570067.4600000009]
[3631,5169,null,null,"Nákup ostatních služeb",10000,10000,-3873.68,6126.32]
[3631,5171,null,null,"Opravy a udržování",50000,40000,3873.68,43873.68]
[3631,null,null,"Veřejné osvětlení",null,300000,370000,{"$f":"H27+H26","v":0},370000]
[2219,6121,null,null,"Stavby",0,92200.76,2000,94200.76]
[2219,5171,null,null,"opravy a udržování",50000,1231706.55,-2000,1229706.55]
[2219,null,null,"Ostatní záležitosti pozemních komunikací",null,247510,1521417.31,{"$f":"H30+H29","v":0},{"$f":"H31+G31","v":1521417.31}]
[3429,5153,null,null,"Plyn",35000,35000,33371.86,{"$f":"H32+G32","v":68371.86},"zálohy plyn"]
[3429,null,null,"Ostatní zájmová činnost a rekreace",null,5925352,6190352,33371.86,6223723.8600000003]
[6112,5031,null,null,"Povinné poj.na soc.zab.a přísp.na st.pol.zaměstnan",155000,155000,-4500,150500,"pojištění"]
[6112,5163,null,null,"Služby peněžních ústavů",5000,5000,4500,9500,"pojištění"]
[6112,null,null,"Zastupitelstva obcí",null,1355000,{"$f":"F36","v":1355000},{"$f":"H35+H34","v":0},1355000]
[6171,5169,null,null,"Nákup ostatních služeb",1500000,1524437.46,-57243.86,{"$f":"H37+G37","v":1467193.5999999999},"pojištění, zálohy plynu"]
[6171,null,null,"Činnost místní správy",null,5427999,9329067.4600000009,-57243.86,{"$f":"H38+G38","v":9271823.6000000015}]
[6320,5163,null,null,"Služby peněžních ústavů",51000,51000,23872,{"$f":"H39+G39","v":74872},"pojištění"]
[6320,null,null,"Pojištění funkčně nespecifikované",null,51000,51000,23872,74872]
[null,null,null,"Celkem ZMĚNY ve VÝDAJÍCH",null,33700619.700000003,{"$f":"[1]List1!$I$75","v":39567550.200000003},{"$f":"H23+H25+H28+H31+H33+H36+H38+H40","v":0},{"$f":"G41","v":39567550.200000003}]
[]
[null,null,null,"Celkem VÝDAJE",null,null,{"$f":"G41","v":39567550.200000003},{"$f":"H41","v":0},{"$f":"I41","v":39567550.200000003}]
[]
[null,null,null,"Celkem 5XXX",null,26883842.949999999,0,26883842.949999999]
[null,null,null,"Celkem 6XXX",null,12683707.249999998,0,12683707.249999998]
[]
[]
["FINANCOVÁNÍ"]
["PAR","POL","UZ","PARAGRAF","popis","Rozpočet na rok 2022","Rozpočet po změnách","změna ROZP","ROZP po ZMĚNĚ"]
[]
[]
[null,null,null,"Celkem ZMĚNY ve FINANCOVÁNÍ:",null,null,null,null,{"$f":"I51","v":0}]
[]
[]
[null,null,null,"REKAPITULACE:"]
[]
[null,null,null,"Celkem PŘÍJMY",null,null,{"$f":"[1]List1!I71","v":35858640.730000004},{"$f":"H16","v":0},{"$f":"H58+G58","v":35858640.730000004}]
[null,null,null,"Celkem FINANCOVÁNÍ:",null,null,{"$f":"[1]List1!I72","v":3708909.4699999997},{"$f":"I53","v":0},{"$f":"H59+G59","v":3708909.4699999997}]
[null,null,null,"Celkem PŘÍJMY+FINANCOVÁNÍ",null,null,{"$f":"[1]List1!I73","v":39567550.200000003},{"$f":"+H59+H58","v":0},{"$f":"I59+I58","v":39567550.200000003}]
[]
[null,null,null,"Celkem VÝDAJE",null,null,{"$f":"[1]List1!I75","v":39567550.200000003},{"$f":"H43","v":0},{"$f":"H62+G62","v":39567550.200000003}]
[]
[]
["Důvodová zpráva k rozpočtovému opatření č. 7 /2022"]
[]
["Přesun prostředků v rámci nezajištěného výdaje je Čerpán z rezervy obce."]
[]
["Správce rozpočtu : "]
[]
["Starosta obce : "]
[]
["Rada obce schvaluje dne 13. 6. 2022 rozpočtové opatření č. 7/2022 v předloženém rozsahu."]

{"sheet":"List2","index":1,"n_rows":24,"n_cols":1,"rows_kept":24,"cut":false,"hidden":false,"merged":[]}
["TEXTY PRO FORMULÁŘ ÚPRAVA ROZPOČTU - na začátek kopírují se řádky 3-13"]
["poznámka: Texty, které budou přenášeny z tohoto formuláře, musí být zapsány pouze ve sloupci A"]
[]
[]
["Obec , IČ: Náklo, 00299251"]
[]
["Rozpočtové změny roku 2019 -duben"]
[]
["V souladu s ustanovením § 16 zákona č. 250/2000 Sb., o rozpočtových pravidlech územních rozpočtů dojde k rozpočtovému"]
["opatření v případě změn rozpočtových prostředků na závazných ukazatelích."]
[]
["Rozpočtové opatření č. 1/2019 (předloženo na ZQ 6. 6. 2018) a doplněno při jednání na ZO"]
[]
["TEXTY PRO FORMULÁŘ ÚPRAVA ROZPOČTU - na začátek kopírují se řádky 16-32"]
[]
["Důvodová zpráva k rozpočtovému opatření č. 1/2019"]
[]
["Přesun prostředků v rámci nezajištěného výdaje je Čerpán z rezervy obce."]
[]
["Správce rozpočtu : "]
[]
["Starosta obce : "]
[]
["ZO schvaluje dne 6. 6. 2018 rozpočtové opatření č. 3/2018 v předloženém rozsahu Usnesením č. 1038/1860"]

{"sheet":"List3","index":2,"n_rows":0,"n_cols":0,"rows_kept":0,"cut":false,"hidden":false,"merged":[]}